bitfinex-derivatives/quotes_ETHF0:USTF0_20251210
["timestamp","ask_amount","ask_price","bid_price","bid_amount"]
[1765396281350,3.2078,3378.1,3377.6,0.00444068]
[1765396281551,0.00762417,3378.3,3377.8,3.2078]
[1765396282144,0.00762417,3378.3,3378.2,3.2078]
[1765396282351,3.55891288,3380.9,3378.2,3.35579]
[1765396282352,3.2078,3379.4,3378.2,3.35579]
[1765396282654,3.2078,3379.2,3378.5,3.2078]
[1765396282854,3.2078,3379.2,3378.3,3.2078]
[1765396283451,0.00444068,3379.1,3378.4,0.00444068]
[1765396283962,3.21224068,3379.1,3378.4,0.00444068]
[1765396284256,3.2078,3378.7,3378.4,0.00444068]
[1765396285453,3.2078,3378.7,3378.4,4.068e-05]
[1765396285659,9.35577,3378.7,3377.0,3.2078]
[1765396285846,3.2078,3378.3,3377.3,0.14803]
[1765396286755,3.2078,3378.3,3377.5,0.00444068]
[1765396287152,3.2078,3378.3,3377.8,3.2078]
[1765396287452,0.14802,3377.7,3376.6,0.00212288]
[1765396287652,2.5611,3378.2,3376.7,0.14806]
[1765396287653,3.2078,3377.2,3376.7,0.14806]
[1765396287848,3.2078,3377.6,3377.0,3.2078]
[1765396288051,3.2078,3377.6,3377.2,0.14803]
[1765396288654,5.7689,3377.6,3377.2,0.14803]
[1765396289057,5.7689,3377.6,3377.1,0.00444068]
[1765396289757,3.2078,3377.2,3377.1,0.00444068]
[1765396289962,5.7689,3377.2,3377.1,0.00444068]
[1765396290256,5.7689,3377.2,3376.6,0.00212288]
[1765396290453,3.2078,3376.8,3376.6,0.00212288]
[1765396290658,3.21110352,3376.8,3376.6,0.00212288]
[1765396290854,3.21110352,3376.8,3375.6,0.1481]
[1765396291051,3.21110352,3376.8,3375.7,0.1481]
[1765396291052,3.2078,3376.4,3375.7,0.1481]
[1765396291260,3.2078,3376.4,3375.7,0.15254068]
[1765396291857,3.2078,3376.4,3375.9,0.14809]
[1765396292258,3.2078,3376.4,3375.7,0.00678074]
[1765396292463,3.21110352,3376.8,3376.3,0.14807]
[1765396292658,2.5611,3376.7,3375.7,0.00678074]
[1765396292959,2.5611,3376.7,3376.1,0.14808]
[1765396293165,3.21110352,3376.8,3376.2,0.14808]
[1765396293366,3.21110352,3376.8,3376.4,0.14807]
[1765396293860,2.5611,3376.7,3376.4,0.14807]
[1765396294865,2.5611,3376.7,3375.9,3.35589]
[1765396295063,2.5611,3376.7,3376.0,0.14808]
[1765396295557,2.5611,3376.7,3376.2,0.14808]
[1765396295958,3.21110352,3376.8,3376.0,3.2078]
[1765396296854,3.21110352,3376.8,3376.5,0.14806]
[1765396297065,3.21110352,3376.8,3376.0,3.2078]
[1765396297366,0.00330352,3376.8,3376.4,3.2078]
[1765396297664,0.00330352,3376.8,3376.7,0.14806]
[1765396297862,3.2078,3377.6,3377.5,0.14802]
[1765396298063,0.00444068,3377.7,3377.6,0.14802]
[1765396298768,0.00749028,3377.7,3377.6,6.14802]
[1765396299067,3.2078,3378.6,3378.1,0.14799]
[1765396299268,2.5611,3378.4,3378.1,0.14799]
[1765396299965,2.5611,3378.2,3378.1,0.15121172]
[1765396300376,0.00262874,3378.4,3378.3,0.14799]
[1765396300567,2.56372874,3378.4,3378.3,0.14799]
[1765396302466,2.56372874,3378.4,3378.3,3.35579]
[1765396302666,2.56372874,3378.4,3378.3,0.14799]
[1765396304168,0.00444068,3378.6,3378.5,0.14798]
[1765396304464,3.2078,3379.3,3378.3,9.2078]
[1765396304465,3.2078,3379.3,3379.2,0.14795]
[1765396304773,3.55891288,3381.3,3378.1,0.00322172]
[1765396304774,3.2078,3379.7,3379.4,0.14794]
[1765396305272,3.2112904,3379.7,3379.4,0.14794]
[1765396305669,3.2112904,3379.7,3379.2,0.00444068]
[1765396305866,3.2078,3379.3,3379.2,0.00444068]
[1765396307266,3.2078,3379.3,3378.4,3.2078]
[1765396307267,9.2078,3379.3,3378.4,3.2078]
[1765396307473,3.2078,3378.5,3378.1,0.00322172]
[1765396308263,3.2078,3378.5,3378.1,0.15121172]
[1765396311267,3.2078,3378.5,3377.4,3.2078]
[1765396311584,3.2078,3378.0,3377.4,3.2078]
[1765396312066,3.2078,3378.0,3377.9,0.148]
[1765396312263,3.2078,3378.0,3377.9,0.15148108]
[1765396313276,3.2078,3378.0,3377.9,0.00348108]
[1765396313676,9.2078,3378.0,3377.6,0.00444068]
[1765396313873,3.2078,3378.0,3377.1,0.14804]
[1765396314078,3.2078,3377.6,3377.1,0.14804]
[1765396314377,3.2078,3377.6,3376.6,3.35586]
[1765396314576,3.2078,3377.6,3376.6,0.14806]
[1765396314772,3.2078,3377.6,3376.6,0.00287633]
[1765396316071,3.2078,3377.6,3377.3,0.14803]
[1765396316471,3.2078,3377.6,3377.4,0.14803]
[1765396316674,3.2078,3377.6,3376.7,0.14806]
[1765396316980,3.2078,3377.2,3376.7,0.14806]
[1765396317281,3.21077262,3377.2,3376.6,0.00287633]
[1765396317482,0.00297262,3377.2,3377.1,0.14804]
[1765396320183,3.2078,3378.1,3377.1,0.14804]
[1765396320184,3.2078,3378.1,3378.0,0.148]
[1765396320586,8.90483857,3381.9,3378.5,0.14798]
[1765396320587,3.2078,3378.6,3378.5,0.14798]
[1765396321278,3.21020826,3378.6,3378.5,0.14798]
[1765396321480,0.00240826,3378.6,3378.5,3.35578]
[1765396321683,0.00444068,3378.9,3378.5,9.2078]
[1765396321886,0.00444068,3378.9,3378.5,3.2078]
[1765396322278,0.00444068,3378.9,3378.8,0.14796]
[1765396322477,3.2078,3379.7,3378.5,9.2078]
[1765396322684,3.2078,3379.7,3378.2,3.56335356]
[1765396322685,3.21083633,3379.7,3379.6,0.14793]
[1765396322984,0.00303633,3379.7,3379.6,0.15149761]
[1765396323386,3.21083633,3379.7,3379.6,0.15149761]
[1765396323591,0.00303633,3379.7,3379.6,0.15149761]
[1765396324692,3.21083633,3379.7,3379.6,0.15149761]
[1765396324983,3.21083633,3379.7,3378.6,3.2078]
[1765396325188,3.21083633,3379.7,3379.1,0.14795]
[1765396325378,3.2078,3379.3,3379.1,0.14795]
[1765396325581,0.00303633,3379.7,3378.2,3.21224068]
[1765396325582,3.21083633,3379.7,3379.5,0.14793]
[1765396325892,3.21083633,3379.7,3379.6,0.14793]
[1765396326092,0.00303633,3379.7,3379.6,0.14793]
[1765396326391,0.00444068,3380.0,3379.9,0.14792]
[1765396327291,0.00785901,3380.0,3379.9,0.14792]
[1765396328402,3.2078,3380.9,3379.8,3.2078]
[1765396328601,3.2078,3380.9,3380.6,0.14789]
[1765396329102,3.2078,3380.9,3380.1,0.14791]
[1765396329397,4.1,3382.3,3380.9,0.14787]
[1765396329398,3.2078,3381.0,3380.9,0.14787]
[1765396329606,0.00263746,3381.0,3380.9,3.35567]
[1765396329907,0.00263746,3381.0,3380.9,0.14787]
[1765396330310,9.35830746,3381.0,3380.2,0.00444068]
[1765396330605,3.2078,3380.7,3380.2,0.00444068]
[1765396330798,3.2078,3380.3,3380.2,0.00444068]
[1765396330993,3.2078,3380.7,3380.2,0.00444068]
[1765396331196,3.2078,3380.3,3380.2,0.00444068]
[1765396331507,3.2078,3380.3,3379.5,0.00370613]
[1765396331693,0.14789,3380.6,3379.5,0.00370613]
[1765396331694,3.2078,3379.7,3379.5,0.00370613]
[1765396331899,3.2078,3380.1,3379.5,0.00370613]
[1765396332094,3.2078,3380.1,3379.6,0.14793]
[1765396332695,3.2078,3380.1,3376.6,6.82610758]
[1765396332696,0.14793,3379.7,3376.6,6.82610758]
[1765396332896,4.1,3380.9,3378.5,0.14798]
[1765396332897,3.2078,3379.0,3378.5,0.14798]
[1765396333094,3.2078,3379.0,3377.8,3.35581]
[1765396333300,3.2078,3379.0,3377.8,3.2078]
[1765396333702,3.2078,3379.0,3378.2,3.2078]
[1765396333900,3.2078,3379.0,3378.2,3.35579]
[1765396333901,0.00444068,3378.7,3378.2,3.35579]
[1765396334304,0.00444068,3378.7,3378.2,0.14799]
[1765396334505,0.00444068,3378.7,3378.2,3.35579]
[1765396334802,3.2078,3378.6,3378.2,0.14799]
[1765396335003,3.2078,3378.6,3378.3,0.14799]
[1765396335004,3.20989214,3378.6,3378.3,0.14799]
[1765396336708,0.00209214,3378.6,3378.2,3.2078]
[1765396336909,0.00209214,3378.6,3378.5,0.14798]
[1765396337405,3.2078,3379.0,3378.2,3.2078]
[1765396337406,3.2078,3379.0,3378.8,0.14796]
[1765396337708,3.2078,3379.0,3378.2,3.2078]
[1765396338097,2.54973313,3381.0,3378.9,2.54973313]
[1765396338098,0.14788,3380.9,3378.9,2.54973313]
[1765396338310,3.2078,3381.0,3380.0,3.2078]
[1765396338609,3.2078,3381.0,3378.9,2.54973313]
[1765396338610,0.00444068,3380.8,3380.4,3.2078]
[1765396338812,0.00444068,3380.8,3380.4,3.21163526]
[1765396339012,0.00444068,3380.8,3380.4,0.00383526]
[1765396340108,3.2078,3380.7,3380.4,0.00383526]
[1765396341506,0.00444068,3380.8,3380.4,0.00383526]
[1765396342206,0.00444068,3380.8,3380.5,0.14789]
[1765396342406,0.00444068,3380.8,3380.6,0.14788]
[1765396344106,0.00444068,3380.8,3380.7,3.35568]
[1765396344311,0.00444068,3380.8,3380.7,0.14788]
[1765396344507,0.00444068,3380.8,3380.7,3.35568]
[1765396345104,0.00323106,3381.0,3380.7,3.35568]
[1765396345105,3.2078,3381.9,3381.3,0.14785]
[1765396345309,3.2078,3382.3,3381.7,3.35564]
[1765396345910,4.1,3383.1,3381.8,0.14783]
[1765396345911,3.2078,3382.7,3381.8,0.14783]
[1765396346109,3.21053471,3382.7,3382.6,2.23191072]
[1765396346308,8.23957514,3387.3,3383.4,0.14776]
[1765396346309,3.2078,3383.9,3383.4,0.14776]
[1765396346511,3.2078,3384.4,3383.6,0.14775]
[1765396346719,0.0044338,3384.0,3383.7,0.14775]
[1765396347418,0.00723466,3384.0,3383.7,0.15107883]
[1765396347812,0.00723466,3384.0,3383.9,0.14774]
[1765396348517,3.2078,3385.0,3384.5,0.14771]
[1765396348718,3.2078,3385.6,3384.8,3.2078]
[1765396349413,0.14753,3388.7,3385.5,5.43971072]
[1765396349619,0.0044338,3387.4,3387.3,3.2078]
[1765396349920,0.0044338,3387.4,3387.3,3.21007318]
[1765396350119,0.0044338,3387.4,3387.3,0.00227318]
[1765396350318,0.0044338,3387.4,3386.8,3.2122338]
[1765396350319,6.0044338,3387.4,3386.8,3.2122338]
[1765396350614,0.0044338,3387.4,3386.8,3.2078]
[1765396350816,6.0044338,3387.4,3386.8,3.2078]
[1765396351013,3.2078,3387.1,3386.3,3.2078]
[1765396351318,3.2078,3387.1,3379.5,12.59691131]
[1765396351319,3.2078,3387.1,3386.0,3.07764333]
[1765396351515,3.2078,3386.1,3384.5,3.2078]
[1765396351713,0.0044338,3385.6,3385.1,2.93261106]
[1765396351917,0.649,3387.0,3385.4,0.14767]
[1765396352220,0.14756,3388.1,3385.4,0.14767]
[1765396352521,3.2078,3387.3,3386.4,3.2078]
[1765396352718,3.2078,3387.3,3386.6,3.2078]
[1765396352916,3.2122338,3387.3,3386.6,3.2122338]
[1765396353113,3.2122338,3387.3,3385.7,3.2078]
[1765396353114,3.2078,3386.7,3385.7,3.2078]
[1765396353318,3.2078,3387.1,3386.5,3.2078]
[1765396353518,3.2078,3387.1,3386.2,3.2078]
[1765396353723,3.2078,3386.6,3385.8,3.2078]
[1765396354016,3.2078,3386.6,3385.9,0.0044338]
[1765396355121,0.14763,3386.5,3385.9,0.0044338]
[1765396355711,7.4,3387.1,3386.3,3.2078]
[1765396355913,3.2122338,3387.3,3386.7,3.2078]
[1765396356121,0.0044338,3387.3,3386.5,3.2078]
[1765396356317,0.0044338,3387.3,3385.9,0.0044338]
[1765396356615,0.0044338,3387.3,3386.7,3.2078]
[1765396357011,9.2078,3387.2,3385.9,3.2122338]
[1765396357318,7.5476,3387.1,3386.4,3.2078]
[1765396357524,3.2078,3386.8,3386.0,3.2078]
[1765396358017,0.14761,3386.9,3386.4,3.2078]
[1765396358514,3.35541,3386.9,3385.9,3.2122338]
[1765396358720,0.14763,3386.4,3385.9,3.2122338]
[1765396359022,0.14765,3386.0,3385.9,3.38e-05]
[1765396359417,6.14765,3386.0,3385.9,3.38e-05]
[1765396360821,6.14765,3386.0,3385.4,0.00282644]
[1765396361022,0.14765,3386.0,3385.4,0.00282644]
[1765396361418,0.14765,3386.0,3385.7,3.2078]
[1765396361623,3.35545,3386.0,3385.4,0.00282644]
[1765396361819,3.2078,3385.6,3384.9,3.2078]
[1765396362018,6.0,3386.0,3381.5,2.39016067]
[1765396362019,0.14768,3385.4,3384.8,3.2078]
[1765396362224,0.14768,3385.4,3385.0,3.2078]
[1765396362924,0.14982167,3385.4,3385.0,3.21164137]
[1765396363225,0.00214167,3385.4,3385.0,3.21164137]
[1765396363822,0.14762,3386.6,3385.0,3.21164137]
[1765396364023,0.14762,3386.6,3385.9,3.2078]
[1765396364632,3.2078,3386.7,3385.9,3.2078]
[1765396364820,0.0044338,3386.6,3385.9,3.2078]
[1765396365725,0.14763,3386.5,3385.9,3.2078]
[1765396366729,0.0044338,3386.6,3385.9,3.2078]
[1765396367123,0.0044338,3386.6,3386.5,3.2078]
[1765396367527,0.0044338,3386.6,3386.1,3.2078]
[1765396367728,0.0044338,3386.6,3386.2,3.2078]
[1765396368234,0.0044338,3386.6,3386.1,3.2078]
[1765396368425,0.0044338,3386.6,3386.2,3.2078]
[1765396369527,0.1520538,3386.6,3386.2,3.2078]
[1765396369736,0.14763,3386.5,3386.2,3.2078]
[1765396370729,0.0044338,3386.6,3386.2,3.2078]
[1765396371630,0.0034485,3386.7,3386.2,3.2078]
[1765396371829,7.4,3387.5,3386.6,3.2078]
[1765396372033,3.35535,3388.4,3386.8,0.14761]
[1765396372231,0.14756,3388.2,3387.2,3.2078]
[1765396372437,7.4,3388.1,3387.1,3.2078]
[1765396372738,0.0044338,3387.9,3387.5,3.2078]
[1765396372932,2.37683182,3387.9,3387.5,0.00211013]
[1765396373134,5.58463182,3387.9,3387.5,0.00211013]
[1765396374634,0.14758,3387.6,3387.5,0.00211013]
[1765396374839,0.14758,3387.6,3385.7,0.24520542]
[1765396374840,0.1476,3387.1,3386.3,3.2078]
[1765396375036,2.2226136,3387.4,3386.7,3.2078]
[1765396375436,3.2078,3387.2,3386.7,3.2078]
[1765396375636,2.2226136,3387.4,3386.7,3.2078]
[1765396375834,2.2270474,3387.4,3386.7,3.21570793]
[1765396376133,0.0044338,3387.4,3386.7,3.21570793]
[1765396376340,0.0044338,3387.4,3387.2,3.2078]
[1765396378435,0.0044338,3387.4,3386.8,3.2078]
[1765396378747,0.00221442,3387.9,3387.3,3.2078]
[1765396378950,0.00221442,3387.9,3387.8,3.2078]
[1765396379146,0.14978442,3387.9,3387.8,3.2078]
[1765396379335,0.14761,3387.1,3386.7,0.00790793]
[1765396379537,2.2226136,3387.0,3386.7,0.00790793]
[1765396379745,2.968,3386.8,3386.0,3.2078]
[1765396379938,3.2078,3386.1,3385.4,3.2078]
[1765396380839,3.2078,3386.1,3385.4,3.21565489]
[1765396381143,3.2078,3386.1,3385.4,0.00785489]
[1765396381442,3.2078,3386.1,3385.4,3.21565489]
[1765396381639,3.3598338,3387.2,3386.0,3.2078]
[1765396381844,3.2122338,3387.2,3386.1,0.14764]
[1765396382243,3.2122338,3387.2,3386.2,0.14764]
[1765396382443,3.2122338,3387.2,3386.5,3.2078]
[1765396382842,3.2122338,3387.2,3386.3,0.14764]
[1765396383043,0.0044338,3387.2,3386.5,3.2078]
[1765396383345,0.0044338,3387.2,3386.3,0.14764]
[1765396383551,0.0044338,3387.2,3386.6,3.2078]
[1765396383754,0.0044338,3387.2,3386.3,0.14764]
[1765396383948,3.2078,3386.9,3386.3,0.14764]
[1765396384246,0.0044338,3387.2,3386.3,0.14764]
[1765396385153,0.0044338,3387.2,3386.6,3.2078]
[1765396385449,0.0044338,3387.2,3386.4,0.14763]
[1765396385852,0.0044338,3387.2,3386.6,3.2078]
[1765396387153,0.0044338,3387.2,3385.4,0.00785489]
[1765396387154,0.0044338,3387.2,3386.1,3.2078]
[1765396387352,2.2226136,3386.8,3385.7,3.2078]
[1765396387553,3.2078,3386.0,3385.4,0.00785489]
[1765396387850,0.14763,3386.4,3385.4,0.00785489]
[1765396387851,3.35543,3386.4,3385.4,0.00785489]
[1765396388044,3.2078,3386.3,3385.4,0.00785489]
[1765396388251,3.2078,3386.7,3385.6,3.2078]
[1765396388452,0.1520338,3387.2,3386.2,3.2078]
[1765396388453,3.3598338,3387.2,3386.2,3.2078]
[1765396389055,3.2078,3386.8,3386.2,3.2078]
[1765396389851,3.2078,3386.8,3386.1,0.14764]
[1765396390060,3.2078,3386.8,3385.8,3.2078]
[1765396391457,3.2078,3386.8,3385.8,3.35546]
[1765396393063,3.2078,3386.3,3385.8,3.35546]
[1765396393268,3.2078,3386.3,3385.8,0.14766]
[1765396393458,3.2078,3385.9,3385.4,3.21565489]
[1765396393663,3.2078,3385.9,3385.4,0.00785489]
[1765396394954,3.35546,3385.9,3385.4,0.0044338]
[1765396395165,0.14766,3385.8,3385.0,3.2078]
[1765396395659,0.14767,3385.7,3385.0,3.2078]
[1765396396163,0.14769,3385.2,3383.8,3.35554]
[1765396396368,5.4304136,3384.9,3383.8,3.35554]
[1765396397265,0.0044338,3384.7,3383.8,3.35807257]
[1765396397858,0.14774,3383.9,3383.8,3.2078]
[1765396398059,3.2078,3383.9,3382.7,0.23988281]
[1765396398266,0.0044338,3384.7,3382.3,2.2226136]
[1765396398267,0.0044338,3383.6,3383.0,3.2078]
[1765396398465,0.0044338,3383.6,3382.6,3.2078]
[1765396398864,3.2078,3383.3,3382.6,3.2078]
[1765396399174,3.2078,3383.3,3382.6,0.00369335]
[1765396399369,3.2078,3382.9,3382.6,0.00369335]
[1765396399863,0.0044338,3383.6,3382.8,0.14779]
[1765396400064,0.0044338,3383.6,3383.5,3.2078]
[1765396400272,10.6078,3384.8,3383.5,3.35556]
[1765396400468,10.6078,3384.8,3383.9,3.2078]
[1765396400668,10.6078,3384.8,3383.5,3.35556]
[1765396400969,3.2078,3384.4,3383.5,3.2078]
[1765396401162,0.0044338,3384.3,3383.9,3.2078]
[1765396401365,0.0028034,3384.9,3384.2,3.2078]
[1765396402368,3.2078,3384.8,3383.9,0.14774]
[1765396402770,3.2078,3384.4,3383.9,0.14774]
[1765396403066,3.2078,3384.4,3383.8,3.2078]
[1765396405169,3.2078,3383.9,3383.6,0.0044338]
[1765396405866,2.69317624,3383.1,3382.6,0.00369335]
[1765396406071,3.2078,3383.1,3382.6,0.00369335]
[1765396406469,3.2078,3383.7,3382.9,3.2078]
[1765396406666,3.2078,3383.7,3382.8,0.14779]
[1765396406875,0.0044338,3383.6,3382.9,0.0044338]
[1765396407773,3.2078,3383.3,3382.9,0.0044338]
[1765396408868,0.0044338,3383.6,3382.9,3.2122338]
[1765396409067,0.0044338,3383.6,3382.9,0.0044338]
[1765396409268,3.2078,3383.3,3382.9,0.0044338]
[1765396410774,3.2078,3383.3,3382.1,3.2078]
[1765396410775,2.54539624,3383.2,3382.1,3.2078]
[1765396410975,3.2078,3382.7,3382.1,3.2078]
[1765396411172,3.2078,3382.7,3382.1,3.35562]
[1765396411370,3.2078,3382.7,3381.3,3.35565]
[1765396411371,3.2078,3382.2,3381.3,3.35565]
[1765396411776,0.0044338,3382.1,3381.7,3.2078]
[1765396412175,0.0044338,3382.1,3381.7,0.14784]
[1765396413781,0.0044338,3382.1,3381.3,0.00347726]
[1765396416288,0.0044338,3382.1,3381.7,3.2078]
[1765396416583,0.0044338,3382.1,3381.3,3.21127726]
[1765396417583,0.0044338,3382.1,3381.7,3.2078]
[1765396418979,0.0044338,3382.1,3381.3,0.00347726]
[1765396419180,3.2078,3381.4,3381.3,0.00347726]
[1765396419386,3.2078,3381.9,3381.3,0.00347726]
[1765396419684,3.2078,3381.5,3381.3,0.00347726]
[1765396420885,0.0044338,3382.1,3381.3,0.00347726]
[1765396421285,0.0044338,3382.1,3381.3,0.15132726]
[1765396421893,0.0044338,3382.1,3381.5,0.14785]
[1765396422092,3.2078,3382.0,3381.5,0.14785]
[1765396422300,3.2078,3381.6,3381.3,0.00347726]
[1765396422498,3.2122338,3382.1,3381.3,0.00347726]
[1765396422999,0.0044338,3382.1,3381.7,3.2078]
[1765396423897,0.0044338,3382.1,3381.3,0.00347726]
[1765396423898,0.0044338,3382.1,3382.0,3.2078]
[1765396424299,3.38e-05,3382.1,3382.0,3.2078]
[1765396425499,3.38e-05,3382.1,3381.9,0.14783]
[1765396425895,3.38e-05,3382.1,3382.0,3.2078]
[1765396426401,3.38e-05,3382.1,3381.9,0.14783]
[1765396428300,3.2078,3382.5,3382.0,3.2078]
[1765396428500,3.2078,3382.5,3382.3,0.14781]
[1765396428803,3.2078,3382.9,3382.3,0.14781]
[1765396429304,3.21442389,3382.9,3382.3,0.14781]
[1765396430106,3.21442389,3382.9,3382.4,3.2078]
[1765396430906,0.00662389,3382.9,3382.3,0.14781]
[1765396431407,3.21442389,3382.9,3382.3,0.14781]
[1765396432105,3.21442389,3382.9,3382.3,3.35561]
[1765396432503,3.21442389,3382.9,3382.3,0.14781]
[1765396432905,3.21442389,3382.9,3382.3,3.35561]
[1765396433404,3.21442389,3382.9,3382.4,3.2078]
[1765396433607,0.00662389,3382.9,3382.4,3.3556]
[1765396433906,0.00662389,3382.9,3382.4,0.1478]
[1765396434102,3.21442389,3382.9,3382.4,0.1478]
[1765396434408,3.21442389,3382.9,3382.0,3.2078]
[1765396434610,3.21442389,3382.9,3382.0,3.35562]
[1765396435002,3.21442389,3382.9,3382.1,0.14782]
[1765396438200,3.21442389,3382.9,3382.0,3.2078]
[1765396440403,3.21442389,3382.9,3381.8,0.14783]
[1765396440404,3.2078,3384.0,3382.5,3.2078]
[1765396440607,7.4,3385.3,3382.1,6.0]
[1765396440608,3.2078,3385.2,3383.9,3.2078]
[1765396440809,0.14769,3385.2,3384.0,3.2078]
[1765396441110,3.2078,3384.4,3383.9,3.2078]
[1765396441301,3.2078,3384.4,3383.2,3.2078]
[1765396441497,0.0044338,3384.1,3383.5,0.0044338]
[1765396441699,0.0044338,3384.1,3383.6,3.2078]
[1765396441907,0.0044338,3384.1,3383.5,0.0044338]
[1765396442408,0.0044338,3384.1,3383.8,3.2078]
[1765396442809,0.0044338,3384.1,3383.5,0.1521938]
[1765396443410,0.0044338,3384.1,3383.8,3.2078]
[1765396443804,0.0023845,3384.4,3383.8,3.2078]
[1765396444010,0.0023845,3384.4,3384.3,3.2078]
[1765396444910,0.0044338,3384.7,3384.3,3.2078]
[1765396446010,0.00378433,3384.7,3384.4,0.14772]
[1765396447217,0.0044338,3384.9,3384.5,0.14771]
[1765396447409,0.0044338,3384.9,3384.8,3.2078]
[1765396447810,3.2078,3385.9,3385.0,0.14769]
[1765396448209,0.0033044,3385.9,3385.4,3.2078]
[1765396448409,0.0033044,3385.9,3383.2,0.00367783]
[1765396448410,0.0033044,3385.9,3385.8,3.2078]
[1765396448711,0.0033044,3385.9,3385.8,0.00258509]
[1765396449217,0.0044338,3386.2,3385.8,3.21038509]
[1765396450217,0.00663954,3386.2,3385.8,0.00258509]
[1765396452313,3.2078,3386.0,3385.8,0.00258509]
[1765396452612,3.2078,3386.0,3385.5,0.0044338]
[1765396453212,0.00663954,3386.2,3385.5,3.2122338]
[1765396453417,0.00663954,3386.2,3385.5,0.00789946]
[1765396453719,0.00663954,3386.2,3385.5,3.21569946]
[1765396454121,3.2078,3386.0,3385.5,0.00789946]
[1765396457420,0.00663954,3386.2,3385.6,3.2078]
[1765396457626,0.00663954,3386.2,3385.5,0.00789946]
[1765396457627,0.00663954,3386.2,3386.1,3.2078]
[1765396458221,3.2078,3387.2,3385.7,3.2078]
[1765396458418,0.14759,3387.4,3385.7,3.2078]
[1765396458613,3.2078,3387.6,3386.5,3.2078]
[1765396459017,3.2078,3387.2,3386.5,3.2078]
[1765396459216,0.00292263,3387.4,3386.5,3.2078]
[1765396459419,3.2078,3387.1,3386.5,3.2078]
[1765396459719,3.2078,3387.1,3386.1,3.2078]
[1765396460428,3.2078,3387.1,3386.5,3.2078]
[1765396461832,3.2078,3387.1,3386.1,3.2078]
[1765396463625,3.2078,3386.7,3386.1,3.2078]
[1765396464833,3.2078,3386.7,3385.7,3.2078]
[1765396464834,0.14763,3386.6,3385.7,3.2078]
[1765396465034,3.2078,3387.1,3386.1,3.2078]
[1765396466233,3.2078,3386.7,3386.1,3.2078]
[1765396467528,3.2078,3387.1,3386.5,3.2078]
[1765396467744,3.2078,3387.1,3386.1,3.2078]
[1765396467935,3.2078,3387.1,3386.5,3.2078]
[1765396468632,0.00318599,3387.6,3386.9,3.2078]
[1765396468826,0.14731,3393.9,3387.5,2.37154478]
[1765396468827,3.2078,3388.9,3387.5,2.37154478]
[1765396469131,3.2078,3389.3,3388.2,3.2078]
[1765396469430,2.22396478,3390.0,3388.6,3.2078]
[1765396469634,3.2078,3389.6,3388.6,3.2078]
[1765396469830,3.21027333,3389.6,3389.0,0.00442602]
[1765396470333,3.2078,3389.2,3389.0,0.00442602]
[1765396473937,3.2078,3389.2,3388.6,0.00235535]
[1765396473938,9.2078,3389.2,3388.6,0.00235535]
[1765396474126,3.2078,3388.7,3387.6,3.2078]
[1765396474326,3.2078,3388.3,3387.6,3.2078]
[1765396475034,3.21220007,3388.3,3387.6,3.21438662]
[1765396475629,0.00440007,3388.3,3388.1,3.2078]
[1765396475940,7e-08,3388.3,3388.1,3.2078]
[1765396476135,3.2078,3389.2,3388.1,3.2078]
[1765396476643,3.2078,3388.8,3388.1,3.2078]
[1765396477140,3.2078,3388.8,3387.7,3.2078]
[1765396477341,3.2078,3388.4,3387.7,3.2078]
[1765396477835,3.2078,3388.8,3387.7,3.2078]
[1765396478043,3.2078,3389.2,3388.1,3.2078]
[1765396478435,3.2078,3388.8,3388.1,3.2078]
[1765396478639,3.2078,3388.8,3387.7,3.2078]
[1765396478834,2.22396478,3389.0,3387.7,3.2078]
[1765396478835,3.2078,3388.4,3387.7,3.2078]
[1765396479040,3.2078,3388.4,3387.6,0.00658662]
[1765396479539,3.2078,3388.2,3387.6,0.00658662]
[1765396479743,3.2078,3387.8,3387.6,0.00658662]
[1765396480337,2.22396478,3387.7,3386.4,3.2078]
[1765396480641,3.2078,3386.9,3386.0,3.2078]
[1765396480841,3.35541,3386.9,3386.0,3.2078]
[1765396481339,3.2078,3386.5,3386.1,0.00442602]
[1765396483036,0.00442602,3386.8,3386.1,0.00442602]
[1765396485645,3.2078,3386.7,3386.1,0.00442602]
[1765396485941,0.14767,3385.5,3384.0,3.2078]
[1765396486137,2.22396478,3384.9,3384.0,3.2078]
[1765396486534,2.22396478,3384.9,3384.2,3.20777126]
[1765396486737,3.2078,3384.6,3384.2,3.20777126]
[1765396486940,5.18196478,3386.4,3384.2,3.20777126]
[1765396486941,0.00442602,3384.7,3384.4,6.41557126]
[1765396487241,0.00442602,3384.7,3384.4,3.2078]
[1765396487436,3.2078,3385.4,3384.9,0.1477]
[1765396487638,3.2078,3385.4,3384.6,3.20777126]
[1765396487639,3.2078,3386.3,3385.2,3.2078]
[1765396487841,3.2078,3385.9,3384.5,3.2078]
[1765396488037,9.62396478,3386.3,3385.0,3.20777126]
[1765396488241,3.2078,3386.0,3385.0,3.20777126]
[1765396488437,3.2078,3385.5,3385.0,3.20777126]
[1765396489642,3.2078,3385.1,3384.2,0.00333964]
[1765396489845,3.2078,3385.1,3384.5,3.20777126]
[1765396490438,3.2078,3385.1,3384.5,6.41557126]
[1765396490640,3.2078,3385.3,3384.5,6.41557126]
[1765396490943,3.21222602,3385.8,3384.9,3.2078]
[1765396491545,3.2078,3385.4,3384.5,6.56328126]
[1765396491845,0.00442602,3385.8,3384.9,3.2078]
[1765396491846,3.21222602,3385.8,3384.9,3.2078]
[1765396492149,3.21222602,3385.8,3384.8,3.2078]
[1765396492441,3.2078,3385.4,3384.8,3.20777126]
[1765396492641,3.2078,3385.4,3384.9,3.20777126]
[1765396493746,3.2078,3385.4,3385.2,3.20777126]
[1765396495347,3.2078,3385.4,3385.3,3.20777126]
[1765396496448,3.2078,3385.4,3384.4,3.2078]
[1765396496747,3.2078,3385.4,3384.9,3.20777126]
[1765396498448,3.2078,3385.4,3384.4,3.2078]
[1765396498449,3.2078,3385.4,3385.1,3.20777126]
[1765396498844,3.2078,3385.3,3385.1,3.20777126]
[1765396500150,3.2078,3385.4,3385.1,3.20777126]
[1765396500352,3.21222602,3385.8,3385.1,3.20777126]
[1765396500560,3.2078,3385.4,3385.1,3.20777126]